[Event "*** Titled Tuesday Blitz"]
[Site "Chess.com"]
[Date "2021.04.27"]
[Round "10"]
[White "chessmachine14"]
[Black "InitiatingASC"]
[Result "1-0"]
[WhiteElo "2275"]
[BlackElo "2370"]
[TimeControl "180+1"]
[EndTime "11:53:52 PDT"]
[Termination "chessmachine14 won by checkmate"]

1. d4 {[%clk 0:03:00.9]} 1... d5 {[%clk 0:02:58.8]} 2. Nf3 {[%clk 0:02:56.1]}
2... e6 {[%clk 0:02:58.2]} 3. g3 {[%clk 0:02:54.4]} 3... c5 {[%clk 0:02:56.9]}
4. c3 {[%clk 0:02:54.5]} 4... Nf6 {[%clk 0:02:54.7]} 5. Bg2 {[%clk 0:02:54.8]}
5... b6 {[%clk 0:02:54.8]} 6. O-O {[%clk 0:02:54.7]} 6... Ba6 {[%clk 0:02:54.8]}
7. Ne5 {[%clk 0:02:50.1]} 7... Be7 {[%clk 0:02:50.3]} 8. Qa4+ {[%clk 0:02:38.9]}
8... b5 {[%clk 0:02:43.2]} 9. Qc2 {[%clk 0:02:38.6]} 9... O-O {[%clk 0:02:41.6]}
10. dxc5 {[%clk 0:02:37.1]} 10... Bxc5 {[%clk 0:02:41]} 11. Nd2 {[%clk
0:02:28.4]} 11... Qc7 {[%clk 0:02:38.8]} 12. Ndf3 {[%clk 0:02:26.3]} 12... Bd6
{[%clk 0:02:37.7]} 13. Bf4 {[%clk 0:02:20.7]} 13... b4 {[%clk 0:02:38]} 14. Rfc1
{[%clk 0:02:01.6]} 14... Rc8 {[%clk 0:02:31.6]} 15. Qd1 {[%clk 0:01:36.2]} 15...
g5 {[%clk 0:02:29.5]} 16. cxb4 {[%clk 0:00:52.1]} 16... gxf4 {[%clk 0:02:20.2]}
17. Rxc7 {[%clk 0:00:51.2]} 17... Rxc7 {[%clk 0:02:19.6]} 18. gxf4 {[%clk
0:00:50.5]} 18... Nbd7 {[%clk 0:02:18.2]} 19. Qd2 {[%clk 0:00:36.6]} 19... Ne4
{[%clk 0:02:05.4]} 20. Qd4 {[%clk 0:00:27.3]} 20... Ndf6 {[%clk 0:01:58.6]} 21.
Ng5 {[%clk 0:00:25.6]} 21... Rac8 {[%clk 0:01:54.4]} 22. f3 {[%clk 0:00:16]}
22... Rc1+ {[%clk 0:01:24.1]} 23. Rxc1 {[%clk 0:00:15.4]} 23... Rxc1+ {[%clk
0:01:25]} 24. Bf1 {[%clk 0:00:15.7]} 24... Bxe2 {[%clk 0:01:25.2]} 25. fxe4
{[%clk 0:00:15.4]} 25... Rxf1+ {[%clk 0:01:17.8]} 26. Kg2 {[%clk 0:00:15.7]}
26... Rxf4 {[%clk 0:01:14.1]} 27. Nexf7 {[%clk 0:00:15]} 27... Bf1+ {[%clk
0:00:56.1]} 28. Kg1 {[%clk 0:00:14.8]} 28... h6 {[%clk 0:00:49.8]} 29. Nxh6+
{[%clk 0:00:13.2]} 29... Kh8 {[%clk 0:00:44]} 30. Ngf7+ {[%clk 0:00:11.7]} 30...
Kg7 {[%clk 0:00:43.7]} 31. Qxa7 {[%clk 0:00:11.3]} 31... Bh3 {[%clk 0:00:38.1]}
32. Nxd6+ {[%clk 0:00:11]} 32... Kxh6 {[%clk 0:00:38.1]} 33. Qe3 {[%clk
0:00:10.2]} 33... Kg5 {[%clk 0:00:12.2]} 34. Qxh3 {[%clk 0:00:09.9]} 34... dxe4
{[%clk 0:00:11.9]} 35. Qxe6 {[%clk 0:00:08.6]} 35... Ng4 {[%clk 0:00:10.1]} 36.
Nxe4+ {[%clk 0:00:07.7]} 36... Kh4 {[%clk 0:00:09.9]} 37. Qe7+ {[%clk
0:00:06.8]} 37... Kh3 {[%clk 0:00:04.4]} 38. Qh7+ {[%clk 0:00:06.8]} 38... Nh6
{[%clk 0:00:04.2]} 39. Qxh6+ {[%clk 0:00:07]} 39... Rh4 {[%clk 0:00:05.1]} 40.
Nf2# {[%clk 0:00:06.6]} 1-0

[Event "*** Titled Tuesday Blitz"]
[Site "Chess.com"]
[Date "2021.04.27"]
[Round "10"]
[White "Natalya_Buksa"]
[Black "MatyChess1"]
[Result "1-0"]
[WhiteElo "2539"]
[BlackElo "2664"]
[TimeControl "180+1"]
[EndTime "11:53:54 PDT"]
[Termination "Natalya_Buksa won by resignation"]

1. d4 {[%clk 0:03:00.9]} 1... d5 {[%clk 0:03:00.1]} 2. Nc3 {[%clk 0:03:01.4]}
2... Nf6 {[%clk 0:02:59.4]} 3. Bf4 {[%clk 0:03:01.8]} 3... e6 {[%clk 0:02:59.9]}
4. e3 {[%clk 0:03:02.2]} 4... Bb4 {[%clk 0:02:59.8]} 5. Bd3 {[%clk 0:03:01.6]}
5... c5 {[%clk 0:02:59.9]} 6. dxc5 {[%clk 0:03:01.5]} 6... Nbd7 {[%clk
0:02:56.8]} 7. a3 {[%clk 0:02:56.6]} 7... Bxc3+ {[%clk 0:02:53.4]} 8. bxc3
{[%clk 0:02:57.5]} 8... Nxc5 {[%clk 0:02:54]} 9. Nf3 {[%clk 0:02:56.6]} 9... O-O
{[%clk 0:02:52.1]} 10. O-O {[%clk 0:02:57]} 10... b6 {[%clk 0:02:52.4]} 11. Bg5
{[%clk 0:02:50.3]} 11... h6 {[%clk 0:02:51.6]} 12. Bh4 {[%clk 0:02:50.1]} 12...
Bb7 {[%clk 0:02:51.3]} 13. Ne5 {[%clk 0:02:45.7]} 13... g5 {[%clk 0:02:31]} 14.
Bg3 {[%clk 0:02:45]} 14... Nfe4 {[%clk 0:02:28.4]} 15. Qh5 {[%clk 0:02:37]}
15... Kg7 {[%clk 0:02:25.7]} 16. Ng4 {[%clk 0:02:32.9]} 16... Rh8 {[%clk
0:02:17.9]} 17. Be5+ {[%clk 0:02:31.2]} 17... f6 {[%clk 0:02:14.9]} 18. Bxe4
{[%clk 0:02:08.8]} 18... Nxe4 {[%clk 0:02:15.8]} 19. Nxf6 {[%clk 0:02:08.7]}
19... Nxf6 {[%clk 0:01:54.9]} 20. f4 {[%clk 0:02:09.1]} 20... g4 {[%clk
0:01:04.6]} 21. f5 {[%clk 0:02:04.7]} 21... Qe8 {[%clk 0:00:50.1]} 22. Qxg4+
{[%clk 0:01:14.9]} 22... Kh7 {[%clk 0:00:50]} 23. Bxf6 {[%clk 0:01:15.4]} 23...
Rg8 {[%clk 0:00:49]} 24. Qf4 {[%clk 0:01:15]} 24... Rc8 {[%clk 0:00:18.3]} 25.
Bd4 {[%clk 0:01:10]} 25... Rf8 {[%clk 0:00:08.4]} 26. f6 {[%clk 0:00:59.6]}
26... Qg6 {[%clk 0:00:07.5]} 27. Rf3 {[%clk 0:00:59.9]} 27... Rf7 {[%clk
0:00:06.3]} 28. Rg3 {[%clk 0:00:59.7]} 28... Qf5 {[%clk 0:00:06.7]} 29. Qh4
{[%clk 0:00:40.3]} 29... e5 {[%clk 0:00:05.3]} 30. Rf1 {[%clk 0:00:40.2]} 30...
Qxc2 {[%clk 0:00:05.9]} 31. Bxe5 {[%clk 0:00:36.2]} 31... Qe4 {[%clk 0:00:05.8]}
32. Qxe4+ {[%clk 0:00:26.2]} 32... dxe4 {[%clk 0:00:05.1]} 33. Rg7+ {[%clk
0:00:23.1]} 33... Rxg7 {[%clk 0:00:04.6]} 34. fxg7 {[%clk 0:00:24]} 34... Kg8
{[%clk 0:00:05.3]} 35. Rf6 {[%clk 0:00:23.2]} 35... Bd5 {[%clk 0:00:03.1]} 36.
Rxh6 {[%clk 0:00:22.3]} 36... Kf7 {[%clk 0:00:03.7]} 37. Bd4 {[%clk 0:00:19.3]}
37... Rg8 {[%clk 0:00:01.6]} 38. Kf2 {[%clk 0:00:19.4]} 38... Be6 {[%clk
0:00:02.5]} 39. h4 {[%clk 0:00:19.2]} 39... Bd5 {[%clk 0:00:02.8]} 40. Kg3
{[%clk 0:00:19.3]} 40... Be6 {[%clk 0:00:03.4]} 41. Rf6+ {[%clk 0:00:19.6]}
41... Ke7 {[%clk 0:00:03.1]} 42. Rf4 {[%clk 0:00:19.3]} 42... Kd7 {[%clk
0:00:01.7]} 43. h5 {[%clk 0:00:19.3]} 43... a5 {[%clk 0:00:02.6]} 44. h6 {[%clk
0:00:19.7]} 1-0

[Event "*** Titled Tuesday Blitz"]
[Site "Chess.com"]
[Date "2021.04.27"]
[Round "10"]
[White "VladimirBugayev"]
[Black "MartinMatthiesen"]
[Result "0-1"]
[WhiteElo "2262"]
[BlackElo "2444"]
[TimeControl "180+1"]
[EndTime "11:53:54 PDT"]
[Termination "MartinMatthiesen won on time"]

1. e4 {[%clk 0:03:00.9]} 1... c5 {[%clk 0:02:58.5]} 2. Nc3 {[%clk 0:03:00.6]}
2... d6 {[%clk 0:02:55.8]} 3. f4 {[%clk 0:02:59.5]} 3... Nc6 {[%clk 0:02:54.8]}
4. Bb5 {[%clk 0:02:57.8]} 4... Bd7 {[%clk 0:02:53.9]} 5. Nf3 {[%clk 0:02:57.9]}
5... g6 {[%clk 0:02:53.2]} 6. O-O {[%clk 0:02:56.3]} 6... Bg7 {[%clk 0:02:52.5]}
7. d3 {[%clk 0:02:49.6]} 7... Nd4 {[%clk 0:02:51.2]} 8. Bc4 {[%clk 0:02:39.6]}
8... e6 {[%clk 0:02:25.5]} 9. Be3 {[%clk 0:02:31.7]} 9... Ne7 {[%clk 0:02:21.5]}
10. Bxd4 {[%clk 0:02:16.9]} 10... cxd4 {[%clk 0:02:19.9]} 11. Ne2 {[%clk
0:02:17]} 11... Qb6 {[%clk 0:01:45.1]} 12. Bb3 {[%clk 0:02:14.8]} 12... d5
{[%clk 0:01:40.2]} 13. Ng3 {[%clk 0:02:05.6]} 13... dxe4 {[%clk 0:01:38.4]} 14.
Nxe4 {[%clk 0:02:03.4]} 14... Nf5 {[%clk 0:01:36.9]} 15. Qe2 {[%clk 0:01:31.4]}
15... Qc7 {[%clk 0:01:30.2]} 16. Ne5 {[%clk 0:01:20.4]} 16... O-O {[%clk
0:00:54.3]} 17. Nxd7 {[%clk 0:01:04]} 17... Qxd7 {[%clk 0:00:53.6]} 18. c3
{[%clk 0:01:03.9]} 18... dxc3 {[%clk 0:00:52.1]} 19. bxc3 {[%clk 0:01:03.4]}
19... Bxc3 {[%clk 0:00:50.5]} 20. Nxc3 {[%clk 0:00:59]} 20... Qd4+ {[%clk
0:00:50.5]} 21. Kh1 {[%clk 0:00:42.9]} 21... Qxc3 {[%clk 0:00:50.4]} 22. Rac1
{[%clk 0:00:42.1]} 22... Qa5 {[%clk 0:00:44]} 23. Qe4 {[%clk 0:00:22]} 23... Qb6
{[%clk 0:00:35.6]} 24. g4 {[%clk 0:00:18.5]} 24... Nd6 {[%clk 0:00:33.5]} 25.
Qe5 {[%clk 0:00:16.6]} 25... Rac8 {[%clk 0:00:27.6]} 26. Bxe6 {[%clk 0:00:16.1]}
26... fxe6 {[%clk 0:00:25.1]} 27. Qxe6+ {[%clk 0:00:15.5]} 27... Nf7 {[%clk
0:00:23]} 28. Qe4 {[%clk 0:00:08.3]} 28... Rxc1 {[%clk 0:00:16.4]} 29. Rxc1
{[%clk 0:00:08.4]} 29... Qb2 {[%clk 0:00:16.7]} 30. Rc7 {[%clk 0:00:07.3]} 30...
Qb1+ {[%clk 0:00:14.8]} 31. Kg2 {[%clk 0:00:07.4]} 31... Qxa2+ {[%clk
0:00:15.4]} 32. Kg3 {[%clk 0:00:07.1]} 32... Qa6 {[%clk 0:00:15.2]} 33. Qe7
{[%clk 0:00:05.9]} 33... Kg7 {[%clk 0:00:14.3]} 34. f5 {[%clk 0:00:05.4]} 34...
Qf6 {[%clk 0:00:13.8]} 35. Qd7 {[%clk 0:00:04.7]} 35... gxf5 {[%clk 0:00:13.2]}
36. gxf5 {[%clk 0:00:04.5]} 36... Kh8 {[%clk 0:00:13.4]} 37. Kf2 {[%clk
0:00:04.2]} 37... Ng5 {[%clk 0:00:12]} 38. h4 {[%clk 0:00:02.3]} 38... Qxf5+
{[%clk 0:00:12]} 39. Ke2 {[%clk 0:00:01.8]} 39... Qxd7 {[%clk 0:00:11.6]} 40.
Rxd7 {[%clk 0:00:01.7]} 40... Ne6 {[%clk 0:00:11.8]} 41. Rxb7 {[%clk 0:00:01.7]}
41... Nf4+ {[%clk 0:00:11]} 0-1

[Event "*** Titled Tuesday Blitz"]
[Site "Chess.com"]
[Date "2021.04.27"]
[Round "10"]
[White "Aradhya2000"]
[Black "Mikhal867"]
[Result "0-1"]
[WhiteElo "2613"]
[BlackElo "2473"]
[TimeControl "180+1"]
[EndTime "11:54:01 PDT"]
[Termination "Mikhal867 won by checkmate"]

1. d4 {[%clk 0:03:00.9]} 1... g6 {[%clk 0:02:41.9]} 2. e4 {[%clk 0:02:59.6]}
2... Bg7 {[%clk 0:02:41.9]} 3. Nf3 {[%clk 0:02:59.9]} 3... d6 {[%clk 0:02:41.8]}
4. Nc3 {[%clk 0:02:59.8]} 4... a6 {[%clk 0:02:41.3]} 5. a4 {[%clk 0:02:59]} 5...
b6 {[%clk 0:02:40.9]} 6. Bc4 {[%clk 0:02:55.7]} 6... e6 {[%clk 0:02:40.4]} 7.
O-O {[%clk 0:02:55.7]} 7... Ne7 {[%clk 0:02:39.9]} 8. Qe2 {[%clk 0:02:54.3]}
8... O-O {[%clk 0:02:39.2]} 9. Rd1 {[%clk 0:02:54.2]} 9... h6 {[%clk 0:02:27.5]}
10. d5 {[%clk 0:02:46]} 10... e5 {[%clk 0:02:26.9]} 11. b4 {[%clk 0:02:36.4]}
11... f5 {[%clk 0:02:24.4]} 12. Ne1 {[%clk 0:02:29.8]} 12... Nd7 {[%clk
0:02:22]} 13. a5 {[%clk 0:02:20.9]} 13... b5 {[%clk 0:02:19.6]} 14. Bd3 {[%clk
0:02:21]} 14... Nf6 {[%clk 0:02:18.5]} 15. f3 {[%clk 0:02:18.1]} 15... f4 {[%clk
0:02:15]} 16. Na2 {[%clk 0:02:06]} 16... g5 {[%clk 0:02:14.8]} 17. c4 {[%clk
0:02:04.8]} 17... bxc4 {[%clk 0:02:14.9]} 18. Bxc4 {[%clk 0:02:05.2]} 18... g4
{[%clk 0:02:14.6]} 19. Nd3 {[%clk 0:02:00.7]} 19... Ng6 {[%clk 0:02:10.7]} 20.
Kh1 {[%clk 0:01:54.7]} 20... Nh4 {[%clk 0:02:09.6]} 21. Nf2 {[%clk 0:01:52.8]}
21... g3 {[%clk 0:02:02.3]} 22. Nd3 {[%clk 0:01:48.9]} 22... gxh2 {[%clk
0:02:01.3]} 23. b5 {[%clk 0:01:48.9]} 23... Nh5 {[%clk 0:01:58.1]} 24. Kxh2
{[%clk 0:01:48.7]} 24... Ng3 {[%clk 0:01:51.9]} 25. Qf2 {[%clk 0:01:45.5]} 25...
Qg5 {[%clk 0:01:51.8]} 26. Rh1 {[%clk 0:00:59.8]} 26... Bf6 {[%clk 0:01:36.2]}
27. Kg1 {[%clk 0:00:55.9]} 27... Nxh1 {[%clk 0:01:35.6]} 28. Kxh1 {[%clk
0:00:56.5]} 28... Rf7 {[%clk 0:01:31.8]} 29. Nab4 {[%clk 0:00:52.7]} 29... Rg7
{[%clk 0:01:30.7]} 30. Ne1 {[%clk 0:00:49.1]} 30... Qh5 {[%clk 0:01:20.4]} 31.
Kg1 {[%clk 0:00:48.7]} 31... Nxg2 {[%clk 0:01:17.3]} 32. Nxg2 {[%clk 0:00:47.4]}
32... Bh3 {[%clk 0:01:16.7]} 33. Bf1 {[%clk 0:00:46.4]} 33... Kh7 {[%clk
0:01:07.6]} 34. bxa6 {[%clk 0:00:43.4]} 34... Rag8 {[%clk 0:01:06.1]} 35. Ra2
{[%clk 0:00:40.4]} 35... Bh4 {[%clk 0:01:03.4]} 36. Qc2 {[%clk 0:00:31.3]} 36...
Qxf3 {[%clk 0:00:57.8]} 37. a7 {[%clk 0:00:24]} 37... Qg4 {[%clk 0:00:36.2]} 38.
a8=Q {[%clk 0:00:17.7]} 38... Rxa8 {[%clk 0:00:34.8]} 39. Nd3 {[%clk 0:00:11.1]}
39... f3 {[%clk 0:00:33.8]} 40. Kh1 {[%clk 0:00:06.4]} 40... Rag8 {[%clk
0:00:28.7]} 41. Nde1 {[%clk 0:00:05.2]} 41... Bxe1 {[%clk 0:00:26.2]} 42. a6
{[%clk 0:00:04.7]} 42... fxg2+ {[%clk 0:00:20.7]} 43. Bxg2 {[%clk 0:00:04.9]}
43... Bxg2+ {[%clk 0:00:19.7]} 44. Qxg2 {[%clk 0:00:05.4]} 44... Qh4+ {[%clk
0:00:19.3]} 45. Qh2 {[%clk 0:00:04.5]} 45... Rg1# {[%clk 0:00:17]} 0-1

[Event "*** Titled Tuesday Blitz"]
[Site "Chess.com"]
[Date "2021.04.27"]
[Round "10"]
[White "Nozdrachev_Vladislav"]
[Black "CrushingKings"]
[Result "1-0"]
[WhiteElo "2697"]
[BlackElo "2512"]
[TimeControl "180+1"]
[EndTime "11:54:01 PDT"]
[Termination "Nozdrachev_Vladislav won on time"]

1. e4 {[%clk 0:03:00.9]} 1... c5 {[%clk 0:02:59.6]} 2. Nf3 {[%clk 0:03:00.5]}
2... e6 {[%clk 0:03:00.1]} 3. d4 {[%clk 0:03:00.1]} 3... cxd4 {[%clk 0:03:00.7]}
4. Nxd4 {[%clk 0:03:00.7]} 4... Nc6 {[%clk 0:03:01.4]} 5. Nc3 {[%clk 0:03:00.2]}
5... Qc7 {[%clk 0:03:01.7]} 6. a3 {[%clk 0:02:56.7]} 6... a6 {[%clk 0:03:01.5]}
7. g3 {[%clk 0:02:55.8]} 7... b5 {[%clk 0:02:55.6]} 8. Bg2 {[%clk 0:02:55.6]}
8... Bb7 {[%clk 0:02:55.5]} 9. O-O {[%clk 0:02:55.4]} 9... Ne5 {[%clk
0:02:46.2]} 10. Bf4 {[%clk 0:02:51.4]} 10... Bc5 {[%clk 0:02:41.7]} 11. b4
{[%clk 0:02:38.3]} 11... Be7 {[%clk 0:02:19.9]} 12. Ncxb5 {[%clk 0:02:28.4]}
12... axb5 {[%clk 0:02:19.3]} 13. Nxb5 {[%clk 0:02:29.3]} 13... Qb8 {[%clk
0:02:16.2]} 14. c4 {[%clk 0:02:24.4]} 14... g5 {[%clk 0:02:08.9]} 15. Be3 {[%clk
0:02:12.8]} 15... Nxc4 {[%clk 0:02:04.3]} 16. Qd4 {[%clk 0:02:11.7]} 16... Nxe3
{[%clk 0:02:03.3]} 17. Qxh8 {[%clk 0:02:10]} 17... Nxf1 {[%clk 0:01:44.8]} 18.
Qxg8+ {[%clk 0:02:09.4]} 18... Bf8 {[%clk 0:01:44.9]} 19. Bxf1 {[%clk 0:02:00]}
19... Bxe4 {[%clk 0:01:21]} 20. Rd1 {[%clk 0:01:39.1]} 20... Bd5 {[%clk
0:01:01.6]} 21. Qxh7 {[%clk 0:01:36]} 21... Qe5 {[%clk 0:00:51.5]} 22. Qc2
{[%clk 0:01:17.1]} 22... Bc6 {[%clk 0:00:42.2]} 23. Nd4 {[%clk 0:01:15]} 23...
Ba4 {[%clk 0:00:23]} 24. Nb3 {[%clk 0:01:08.7]} 24... Be7 {[%clk 0:00:22]} 25.
Bg2 {[%clk 0:01:05.3]} 25... Rd8 {[%clk 0:00:17.3]} 26. Qd3 {[%clk 0:01:02.2]}
26... Qb2 {[%clk 0:00:16.3]} 27. Rb1 {[%clk 0:01:00]} 27... Qxa3 {[%clk
0:00:15.8]} 28. b5 {[%clk 0:00:59.5]} 28... Rb8 {[%clk 0:00:12.6]} 29. Qc3
{[%clk 0:00:51.2]} 29... Rxb5 {[%clk 0:00:10.7]} 30. Qc8+ {[%clk 0:00:39.2]}
30... Bd8 {[%clk 0:00:10.8]} 31. Bc6 {[%clk 0:00:21.9]} 31... dxc6 {[%clk
0:00:07]} 32. Qxc6+ {[%clk 0:00:16.5]} 32... Kf8 {[%clk 0:00:02.9]} 33. Qc8
{[%clk 0:00:16.6]} 33... Rd5 {[%clk 0:00:02.8]} 34. Na5 {[%clk 0:00:10.9]} 34...
Kg7 {[%clk 0:00:01.8]} 35. Nb7 {[%clk 0:00:09.5]} 35... Bf6 {[%clk 0:00:02.1]}
36. Rf1 {[%clk 0:00:07.6]} 36... Qa2 {[%clk 0:00:02.3]} 37. Qc7 {[%clk
0:00:07.3]} 37... Bb5 {[%clk 0:00:02.4]} 38. Nd6 {[%clk 0:00:07]} 38... Rf5
{[%clk 0:00:01.2]} 39. Qxf7+ {[%clk 0:00:06.6]} 39... Kh6 {[%clk 0:00:02.1]} 40.
Nxf5+ {[%clk 0:00:06.4]} 40... exf5 {[%clk 0:00:02.4]} 41. Qxa2 {[%clk
0:00:06.2]} 1-0

[Event "*** Titled Tuesday Blitz"]
[Site "Chess.com"]
[Date "2021.04.27"]
[Round "10"]
[White "Agoking701"]
[Black "MFguimaraes"]
[Result "0-1"]
[WhiteElo "2275"]
[BlackElo "2436"]
[TimeControl "180+1"]
[EndTime "11:54:02 PDT"]
[Termination "MFguimaraes won by resignation"]

1. Nf3 {[%clk 0:03:00.9]} 1... d5 {[%clk 0:02:58.8]} 2. g3 {[%clk 0:02:59.6]}
2... f5 {[%clk 0:02:58.6]} 3. Bg2 {[%clk 0:02:57.2]} 3... Nf6 {[%clk 0:02:59.5]}
4. O-O {[%clk 0:02:56.6]} 4... e6 {[%clk 0:03:00.4]} 5. d3 {[%clk 0:02:54.2]}
5... Be7 {[%clk 0:03:00.5]} 6. Nbd2 {[%clk 0:02:54.3]} 6... O-O {[%clk
0:03:00.3]} 7. Qe1 {[%clk 0:02:54.7]} 7... c5 {[%clk 0:03:00.1]} 8. e4 {[%clk
0:02:55]} 8... d4 {[%clk 0:03:00.1]} 9. Ne5 {[%clk 0:02:50.1]} 9... Nc6 {[%clk
0:02:59.3]} 10. Nxc6 {[%clk 0:02:48.3]} 10... bxc6 {[%clk 0:03:00.2]} 11. Qe2
{[%clk 0:02:41.6]} 11... fxe4 {[%clk 0:02:58.4]} 12. Nxe4 {[%clk 0:02:42.5]}
12... Nd5 {[%clk 0:02:58.1]} 13. Bd2 {[%clk 0:02:37.7]} 13... a5 {[%clk
0:02:58.2]} 14. Rae1 {[%clk 0:02:35.9]} 14... a4 {[%clk 0:02:57.5]} 15. a3
{[%clk 0:02:32.5]} 15... Rb8 {[%clk 0:02:55.9]} 16. Bc1 {[%clk 0:02:31.5]} 16...
h6 {[%clk 0:02:49.8]} 17. Bh3 {[%clk 0:02:26.6]} 17... Re8 {[%clk 0:02:49.4]}
18. Nd2 {[%clk 0:02:25.6]} 18... Bg5 {[%clk 0:02:46.1]} 19. f4 {[%clk
0:02:20.6]} 19... Bf6 {[%clk 0:02:46]} 20. Nc4 {[%clk 0:02:19.3]} 20... Ne3
{[%clk 0:02:42.3]} 21. Nxe3 {[%clk 0:02:13.9]} 21... dxe3 {[%clk 0:02:43.2]} 22.
c3 {[%clk 0:02:12.9]} 22... e5 {[%clk 0:02:43.3]} 23. Bxc8 {[%clk 0:02:12.2]}
23... Qxc8 {[%clk 0:02:39.6]} 24. Bxe3 {[%clk 0:02:13.1]} 24... exf4 {[%clk
0:02:35.6]} 25. gxf4 {[%clk 0:02:01.3]} 25... Bh4 {[%clk 0:02:30.2]} 26. Rd1
{[%clk 0:01:43.6]} 26... Qe6 {[%clk 0:02:09.4]} 27. Rf3 {[%clk 0:01:40]} 27...
Re7 {[%clk 0:02:00]} 28. Qg2 {[%clk 0:00:57.1]} 28... Qb3 {[%clk 0:01:42.4]} 29.
Rd2 {[%clk 0:00:44.7]} 29... Rbe8 {[%clk 0:01:38.3]} 30. Qh3 {[%clk 0:00:34.6]}
30... Qd5 {[%clk 0:01:28.2]} 31. c4 {[%clk 0:00:30.6]} 31... Qh5 {[%clk
0:01:18.8]} 32. Re2 {[%clk 0:00:13.1]} 32... Qg6+ {[%clk 0:00:58.4]} 33. Rg2
{[%clk 0:00:03.9]} 33... Qxd3 {[%clk 0:00:52]} 34. Qxh4 {[%clk 0:00:03.9]} 34...
Rxe3 {[%clk 0:00:47]} 35. Rf1 {[%clk 0:00:04.4]} 35... Re2 {[%clk 0:00:39.8]}
36. Rg3 {[%clk 0:00:02.5]} 36... Qd4+ {[%clk 0:00:36.6]} 37. Kh1 {[%clk
0:00:03.1]} 37... Re1 {[%clk 0:00:32.7]} 38. Qh3 {[%clk 0:00:02.1]} 38... Qe4+
{[%clk 0:00:26.9]} 39. Kg1 {[%clk 0:00:02.6]} 39... Qxf4 {[%clk 0:00:23.4]} 40.
Qg2 {[%clk 0:00:01.7]} 40... Rxf1+ {[%clk 0:00:18.6]} 41. Qxf1 {[%clk
0:00:02.6]} 41... Qd4+ {[%clk 0:00:18.4]} 42. Kh1 {[%clk 0:00:03]} 42... Qxb2
{[%clk 0:00:17.2]} 43. Qg1 {[%clk 0:00:02.2]} 43... Re2 {[%clk 0:00:16.1]} 44.
Rg6 {[%clk 0:00:01.6]} 44... Qe5 {[%clk 0:00:15.5]} 45. Rg3 {[%clk 0:00:01.5]}
45... Re1 {[%clk 0:00:15.6]} 46. Rg2 {[%clk 0:00:02.2]} 46... Rxg1+ {[%clk
0:00:15.1]} 47. Rxg1 {[%clk 0:00:03.1]} 47... Qe4+ {[%clk 0:00:15.1]} 0-1

[Event "*** Titled Tuesday Blitz"]
[Site "Chess.com"]
[Date "2021.04.27"]
[Round "10"]
[White "SergeyShtyka"]
[Black "politeplayer"]
[Result "1-0"]
[WhiteElo "2407"]
[BlackElo "2255"]
[TimeControl "180+1"]
[EndTime "11:54:03 PDT"]
[Termination "SergeyShtyka won on time"]

1. e4 {[%clk 0:03:00.9]} 1... e6 {[%clk 0:02:59.5]} 2. Nf3 {[%clk 0:02:59.9]}
2... d5 {[%clk 0:02:56.6]} 3. e5 {[%clk 0:03:00.2]} 3... c5 {[%clk 0:02:55.7]}
4. b4 {[%clk 0:02:59.7]} 4... b6 {[%clk 0:02:46.7]} 5. bxc5 {[%clk 0:02:57.1]}
5... bxc5 {[%clk 0:02:46.1]} 6. c3 {[%clk 0:02:56.3]} 6... d4 {[%clk 0:02:46.5]}
7. Bb5+ {[%clk 0:02:50.8]} 7... Nd7 {[%clk 0:02:45.8]} 8. cxd4 {[%clk
0:02:47.5]} 8... cxd4 {[%clk 0:02:44.2]} 9. Nxd4 {[%clk 0:02:44.7]} 9... Qb6
{[%clk 0:02:43.7]} 10. Bb2 {[%clk 0:02:36.6]} 10... Bc5 {[%clk 0:02:42]} 11. Qg4
{[%clk 0:02:30.8]} 11... Kf8 {[%clk 0:01:57.6]} 12. Bxd7 {[%clk 0:02:15.2]}
12... Qxb2 {[%clk 0:01:51]} 13. Nb3 {[%clk 0:01:46]} 13... Bxd7 {[%clk
0:01:37.1]} 14. O-O {[%clk 0:01:46]} 14... Bb6 {[%clk 0:01:11]} 15. Nc3 {[%clk
0:01:40]} 15... Qc2 {[%clk 0:00:59.3]} 16. Ne4 {[%clk 0:01:33.7]} 16... Nh6
{[%clk 0:00:54.7]} 17. Qf4 {[%clk 0:01:28.4]} 17... Bc6 {[%clk 0:00:31]} 18. Ng5
{[%clk 0:01:22.3]} 18... Qf5 {[%clk 0:00:25.4]} 19. Qg3 {[%clk 0:01:21.7]} 19...
Ng4 {[%clk 0:00:20.6]} 20. Rac1 {[%clk 0:00:59.5]} 20... Bd5 {[%clk 0:00:17.3]}
21. Nf3 {[%clk 0:00:50.5]} 21... Bxf3 {[%clk 0:00:16.1]} 22. gxf3 {[%clk
0:00:50.6]} 22... Nxe5 {[%clk 0:00:16]} 23. f4 {[%clk 0:00:43.1]} 23... Ng6
{[%clk 0:00:13.1]} 24. Rc4 {[%clk 0:00:40]} 24... h6 {[%clk 0:00:13.1]} 25. a4
{[%clk 0:00:35.9]} 25... Kg8 {[%clk 0:00:11.2]} 26. a5 {[%clk 0:00:36.2]} 26...
Bd8 {[%clk 0:00:11.1]} 27. d3 {[%clk 0:00:22.1]} 27... Bh4 {[%clk 0:00:10.6]}
28. Qf3 {[%clk 0:00:19.1]} 28... Ne5 {[%clk 0:00:10.2]} 29. Qxa8+ {[%clk
0:00:17]} 29... Kh7 {[%clk 0:00:09.7]} 30. Qe4 {[%clk 0:00:10.3]} 30... Nxc4
{[%clk 0:00:05]} 31. Qxf5+ {[%clk 0:00:10.6]} 31... exf5 {[%clk 0:00:05.3]} 32.
dxc4 {[%clk 0:00:11.5]} 32... Rb8 {[%clk 0:00:04.8]} 33. Nd4 {[%clk 0:00:10.3]}
33... Rb4 {[%clk 0:00:04.1]} 34. Nxf5 {[%clk 0:00:09.9]} 34... Bf6 {[%clk
0:00:03.7]} 35. Rc1 {[%clk 0:00:09.5]} 35... g6 {[%clk 0:00:02.7]} 36. Nd6
{[%clk 0:00:09.2]} 36... Bd8 {[%clk 0:00:02.1]} 37. Nxf7 {[%clk 0:00:08.9]}
37... Bxa5 {[%clk 0:00:01.5]} 38. Kg2 {[%clk 0:00:09.2]} 38... Bb6 {[%clk
0:00:01]} 39. Rc2 {[%clk 0:00:07.3]} 39... Bc5 {[%clk 0:00:01.1]} 40. Ne5 {[%clk
0:00:07.3]} 40... a5 {[%clk 0:00:01.1]} 41. Nd3 {[%clk 0:00:07.6]} 1-0